Cogmind - Beta 13 *** ADVENTURER MODE // 2024.04.03 @ 14:32:50 Player: Cheeseinator Result: Destroyed by Y-45 Defender with Beam Rifle Performance ------------- Evolutions (2) 1000 Regions Visited (4) 800 Robots Destroyed (36) 180 Value Destroyed (690) 690 Prototype IDs (0) 0 Alien Tech Used (0) 0 Bonus (33) 33 TOTAL SCORE: 2703 Bonus ------- High Alert Combat Kills 33 Cogmind --------- Core Integrity 0/550 Matter 268/300 Energy 100/100 System Corruption 0% Temperature Cool (10) Movement Flying (35) Location -8/Materials Parts ------- > --- POWER (1) -------- (None) > --- PROPULSION (4) --- Cesium-ion Thruster > --- UTILITY (4) ------ Advanced Targeting Computer Hacking Suite > --- WEAPON (2) ------- (None) > --- INVENTORY (5) ---- Small Storage Unit Small Storage Unit Medium Matter Pod (100) Heavy Particle Cannon Heavy Particle Cannon Peak State ------------ > --- POWER ------------ Improved Ion Engine > --- PROPULSION ------- Titanium Leg Titanium Leg Titanium Leg Titanium Leg > --- UTILITY ---------- Small Storage Unit Structural Scanner Advanced Visual Processing Unit Improved Terrain Scanner > --- WEAPON ----------- Heavy Particle Cannon Heavy Particle Cannon > --- INVENTORY -------- Ion Engine Light Ion Engine Small Storage Unit Medium Matter Pod Light Armor Plating Heavy Particle Cannon Heavy Particle Cannon Grenade Launcher [Rating: 29] Favorites ----------- Power Light Ion Engine Engine Light Ion Engine Propulsion Titanium Leg Treads Light Treads Leg Titanium Leg Flight Unit Cesium-ion Thruster Utility Small Storage Unit Device Structural Scanner Storage Small Storage Unit Processor Advanced Visual Processing Unit Hackware Hacking Suite Protection Light Armor Plating Weapon Heavy Particle Cannon Energy Gun Medium Laser Energy Cannon Heavy Particle Cannon Ballistic Gun Light Assault Rifle Ballistic Cannon Assault Cannon Launcher Grenade Launcher Build | -11 -10 -9 -9 -8 ------- Run | Yrd Mat Mat Min Mat Slots Evolved 4 | . . 2 . 2 Power . | . . . . . Propulsion 2 | . . 2 . . Utility 2 | . . . . 2 Weapon . | . . . . . Parts Attached 36 | 8 5 8 1 14 Power 5 | 1 . 1 1 2 Engine 5 | 1 . 1 1 2 Core . | . . . . . Reactor . | . . . . . Propulsion 8 | 2 . 4 . 2 Treads 2 | 2 . . . . Leg 5 | . . 4 . 1 Wheel . | . . . . . Hover . | . . . . . Flight 1 | . . . . 1 Utility 13 | 3 4 . . 6 Device 8 | 2 4 . . 2 Storage 1 | 1 . . . . Processor 2 | . . . . 2 Hackware 1 | . . . . 1 Protection 1 | . . . . 1 Artifact . | . . . . . Weapon 10 | 2 1 3 . 4 Energy Gun 2 | 1 . . . 1 Energy Cannon 4 | . . 3 . 1 Ballistic Gun 1 | 1 . . . . Ballistic Cannon 1 | . . . . 1 Launcher 2 | . 1 . . 1 Special Weapon . | . . . . . Impact Weapon . | . . . . . Slashing Weapon . | . . . . . Piercing Weapon . | . . . . . Special Melee Weapon . | . . . . . Unidentified Prototypes . | . . . . . Parts Lost 6 | . . . . 6 Power 1 | . . . . 1 Propulsion 1 | . . . . 1 Utility 1 | . . . . 1 Weapon 3 | . . . . 3 Highest Loss Streak 3 | . . . . 3 To Critical Strikes . | . . . . . Average Slot Usage (%) 88 | . 99 95 100 61 Engine 10 | . 14 11 11 4 Treads 11 | . 28 . . . Leg 18 | . . 40 44 19 Device 11 | . 13 11 11 9 Storage 10 | . 14 11 11 4 Processor 2 | . . . . 7 Energy Gun 3 | . 9 . . . Energy Cannon 8 | . . 18 22 8 Ballistic Gun 6 | . 14 1 . . Launcher 2 | . 4 1 . . Naked Turns 27 | . . . . 27 Heaviest Build 27 | 12 13 21 23 27 Greatest Support 68 | 40 40 68 68 34 Greatest Overweight (x) 4 | . . 4 . 2 Average Overweight (x) . | . . . . . Largest Inventory Capacity 8 | 8 8 8 8 8 Average Capacity 7 | 7 8 8 8 6 Most Carried 8 | 7 8 8 8 8 Average Carried 6 | 4 6 7 8 5 Final Capacity 8 | 8 8 8 8 5 Final Carried 8 | 6 6 8 8 5 Class Distribution -------------------- 96% | Mutant 3% | Hacker-Mutant Dominant Class ---------------- Mutant | -10/Materials Mutant | -9/Materials Mutant | -9/Mines Mutant | -8/Materials Resources | -11 -10 -9 -9 -8 ----------- Run | Yrd Mat Mat Min Mat Matter Collected 704 | 297 15 117 24 251 Remotely . | . . . . . Salvage Created 877 | 174 64 117 . 522 Parts 72 | 18 7 22 . 25 Haulers Intercepted 1 | . . . . 1 Recyclers Shooed 1 | . . 1 . . Parts Field Recycled . | . . . . . Retrieved Matter . | . . . . . Parts Self-Destructed . | . . . . . Prevented . | . . . . . Kills | -11 -10 -9 -9 -8 ------- Run | Yrd Mat Mat Min Mat Combat Hostiles Destroyed 20 | . 3 7 . 10 Guns 3 | . 3 . . . Cannons 14 | . . 7 . 7 AOE 3 | . . . . 3 Classes Destroyed 11 | 3 2 1 . 5 Worker 5 | 3 . . . 2 Builder 2 | . . 1 . 1 Tunneler 3 | 3 . . . . Hauler 1 | . . . . 1 Recycler 2 | 1 . . . 1 Watcher 3 | . 1 1 . 1 Swarmer 10 | . 3 7 . . Grunt 6 | . . . . 6 Brawler 1 | . . . . 1 Sentry 2 | . . . . 2 Hunter 1 | . . . . 1 Best Kill Streak 9 | 2 3 9 . 7 Combat Bots Only 7 | . 3 7 . 5 Max Kills in Single Turn 2 | 2 1 2 . 2 Gunslinging . | . . . . . Exploded 2 | . . . . 2 Melee . | . . . . . Uniques/NPCs Destroyed . | . . . . . Combat | -11 -10 -9 -9 -8 -------- Run | Yrd Mat Mat Min Mat Hostile Shots Fired 209 | . 20 25 . 164 Missed 61 | . 2 8 . 51 Damage Taken 1709 | . 139 98 . 1472 Core 578 | . 16 11 . 551 Absorbed by Shields . | . . . . . Ignored by Resistances 497 | . 42 34 . 421 Core Remaining (%) 96 | 100 93 . 97 . Volleys Fired 72 | 17 9 11 . 35 Largest 2 | 2 2 2 . 2 Hottest 150 | 70 70 150 . 150 Shots Fired 133 | 34 18 19 . 62 Gun 59 | 34 16 . . 9 Cannon 62 | . . 19 . 43 Launcher 12 | . 2 . . 10 Special . | . . . . . Kinetic 38 | 17 9 . . 12 Thermal 83 | 17 7 19 . 40 Explosive 12 | . 2 . . 10 Electromagnetic . | . . . . . Robot Hit Streak 19 | 19 3 4 . 14 Robot Miss Streak 3 | 1 3 3 . 1 Penetration Max . | . . . . . Secondary Targets 1 | . 1 . . . Max Gunslinging Chain 1 | . 1 . . . Shots Hit Robots 92 | 28 8 11 . 45 Core Hits 61 | 10 6 8 . 37 Critical Kills 1 | . 1 . . . Critical Parts Destroyed . | . . . . . Critical Strikes 5 | 4 1 . . . Burn 4 | 4 . . . . Destroy 1 | . 1 . . . Melee Attacks . | . . . . . Impact . | . . . . . Slashing . | . . . . . Piercing . | . . . . . Sneak Attacks . | . . . . . Combat Hostiles . | . . . . . Follow-up Attacks . | . . . . . Damage Inflicted 2258 | 303 137 325 . 1493 Guns 448 | 303 69 . . 76 Cannons 1147 | . . 325 . 822 Explosions 659 | . 68 . . 591 Melee . | . . . . . Ramming 4 | . . . . 4 Kinetic 408 | 104 32 . . 272 Thermal 1187 | 199 37 325 . 626 Explosive 659 | . 68 . . 591 Electromagnetic . | . . . . . Impact . | . . . . . Slashing . | . . . . . Piercing . | . . . . . Highest Corruption . | . . . . . Average Corruption . | . . . . . Corruption Purged . | . . . . . Corruption Blocked . | . . . . . Overload Shots . | . . . . . Overflow Damage 55 | . 8 20 . 27 Projectiles 30 | . . 20 . 10 Explosions 25 | . 8 . . 17 Melee . | . . . . . Knockbacks 1 | . . . . 1 Impact . | . . . . . Kinetic 1 | . . . . 1 Secondary . | . . . . . Self-Inflicted Damage 125 | . 20 . . 105 Shots 6 | . 1 . . 5 Rammed . | . . . . . Targets Rammed 2 | . . . . 2 Kicked 2 | . . . . 2 Crushed . | . . . . . Highest Temperature 405 | 50 90 405 . 369 Average Temperature 110 | 23 33 217 . 109 Received Heat Transfer 675 | . . . . 675 Effects 4 | . . . . 4 Energy Bleed 1 | . . . . 1 Interference 3 | . . . . 3 Siege Activations . | . . . . . Robots Corrupted . | . . . . . Combat Hostiles . | . . . . . Parts Fried . | . . . . . Impact Corruptions . | . . . . . Robots Melted . | . . . . . Combat Hostiles . | . . . . . Parts Melted 2 | 1 . 1 . . Heat Transferred 2479 | 888 111 481 . 999 Parts Sabotaged . | . . . . . Parts Stolen . | . . . . . Parts Stripped . | . . . . . Power Chain Reactions . | . . . . . Alert | -11 -10 -9 -9 -8 ------- Run | Yrd Mat Mat Min Mat Peak Influence 474 | 25 84 231 80 474 Initial 80 | . 13 23 80 26 Average 84 | 8 27 147 80 243 Maximum Alert Level 2 | . . 1 . 2 Low Security (%) 81 | 100 100 42 100 39 Level 1 14 | . . 57 . 37 Level 2 4 | . . . . 23 Level 3 . | . . . . . Level 4 . | . . . . . Level 5 . | . . . . . High Security . | . . . . . Max Security . | . . . . . Squads Dispatched 8 | . . . . 8 Investigation . | . . . . . Extermination . | . . . . . Reinforcement 5 | . . . . 5 Assault . | . . . . . Garrison 3 | . . . . 3 Intercept . | . . . . . Searches Triggered . | . . . . . Construction Impeded 1 | . . . . 1 Haulers Reinforced . | . . . . . Active Scanning Responses . | . . . . . Cargo Convoy Interrupts . | . . . . . Stealth | -11 -10 -9 -9 -8 --------- Run | Yrd Mat Mat Min Mat Distress Signals 1 | . . . . 1 Communications Jammed . | . . . . . Distress Signals . | . . . . . Times Spotted 55 | . 8 11 . 36 Peak Tracking Total 11 | . 3 4 . 11 Tactical Retreats 6 | . . 1 . 5 Traps | -11 -10 -9 -9 -8 ------- Run | Yrd Mat Mat Min Mat Traps Triggered . | . . . . . Indirectly . | . . . . . Trap Hack Attempts . | . . . . . Triggered . | . . . . . Disarmed . | . . . . . Reprogrammed . | . . . . . Reused . | . . . . . Traps Extracted . | . . . . . Installed . | . . . . . Triggered . | . . . . . Machines | -11 -10 -9 -9 -8 ---------- Run | Yrd Mat Mat Min Mat Machines Disabled 2 | . . . . 2 Max in Single Turn 1 | . . . . 1 Machines Repaired . | . . . . . Machines Dismantled . | . . . . . Machines Sabotaged . | . . . . . Overloaded Fab Kills . | . . . . . Hacking | -11 -10 -9 -9 -8 --------- Run | Yrd Mat Mat Min Mat Machines Accessed 3 | . 2 . . 1 Terminals 3 | . 2 . . 1 Fabricators . | . . . . . Repair Stations . | . . . . . Recycling Units . | . . . . . Scanalyzers . | . . . . . Garrison Access . | . . . . . Total Hacks 11 | . 7 . . 4 Successful 6 | . 6 . . . Failed 5 | . 1 . . 4 Catastrophic . | . . . . . Database Lockouts . | . . . . . Manual 7 | . 7 . . . Terminals 11 | . 7 . . 4 Fabricators . | . . . . . Repair Stations . | . . . . . Recycling Units . | . . . . . Scanalyzers . | . . . . . Garrison Access . | . . . . . Terminal Hacks 6 | . 6 . . . Record 4 | . 4 . . . Emergency Access Points 1 | . 1 . . . Alert Level 1 | . 1 . . . Fabricator Hacks . | . . . . . Repair Station Hacks . | . . . . . Recycling Unit Hacks . | . . . . . Scanalyzer . | . . . . . Garrison Access Hacks . | . . . . . Unauthorized Hacks . | . . . . . Terminals . | . . . . . Fabricators . | . . . . . Repair Stations . | . . . . . Recycling Units . | . . . . . Scanalyzers . | . . . . . Garrison Access . | . . . . . Data Cores Recovered . | . . . . . Used . | . . . . . Hacking Detections 3 | . 2 . . 1 Full Trace Events . | . . . . . Feedback Events . | . . . . . Feedback Blocked . | . . . . . Robot Schematics Acquired . | . . . . . Robots Built . | . . . . . Authchips . | . . . . . Time . | . . . . . Total Robot Build Rating . | . . . . . Part Schematics Acquired . | . . . . . Parts Built . | . . . . . Authchips . | . . . . . Time . | . . . . . Total Part Build Rating . | . . . . . Parts Repaired . | . . . . . Time . | . . . . . Parts Recycled . | . . . . . Recycled Matter . | . . . . . Retrieved Matter . | . . . . . Retrieved Components . | . . . . . Parts Scanalyzed . | . . . . . Part Schematics Acquired . | . . . . . Parts Damaged . | . . . . . Bothacking | -11 -10 -9 -9 -8 ------------ Run | Yrd Mat Mat Min Mat Used RIF Installer . | . . . . . Robots Hacked . | . . . . . Non-combat . | . . . . . Combat . | . . . . . Robot Hacks Applied . | . . . . . Relay Couplers Released . | . . . . . Fabnet Peak Effective % . | . . . . . Robots Rewired . | . . . . . Allies Hacked . | . . . . . Hacks Repelled . | . . . . . Allies | -11 -10 -9 -9 -8 -------- Run | Yrd Mat Mat Min Mat Total Allies . | . . . . . Largest Group . | . . . . . Highest-Rated Group . | . . . . . Highest-Rated Ally . | . . . . . Total Orders . | . . . . . Ally Attacks . | . . . . . Total Damage . | . . . . . Kills . | . . . . . Allies Corrupted . | . . . . . Allies Melted . | . . . . . Intel | -11 -10 -9 -9 -8 ------- Run | Yrd Mat Mat Min Mat Robot Analysis Total . | . . . . . Derelict Logs Recovered 1 | . . . 1 . Drone Launches . | . . . . . Drone Recoveries . | . . . . . Exploration | -11 -10 -9 -9 -8 ------------- Run | Yrd Mat Mat Min Mat Turns Passed 2415 | 669 724 308 254 460 Spaces Moved 1300 | 226 256 150 177 491 Core 127 | 6 . 8 . 113 Treads 476 | 220 256 . . . Legs 457 | . . 142 177 138 Wheels . | . . . . . Hover . | . . . . . Flight 240 | . . . . 240 Fastest Speed 35 | 50 160 130 130 35 Average Speed 117 | 157 160 137 130 66 Slowest Speed 250 | 160 160 250 130 150 Overloaded Moves . | . . . . . Propulsion Burnouts . | . . . . . Robots Hopped 1 | . . . . 1 Cave-ins Triggered . | . . . . . Exploration Rate (%) 29 | 12 37 12 37 50 Regions Visited 4 Branch Regions 1 Pre-discovered Areas 1 | . . . 1 . Known Exits Taken . | . . . . . Unknown Exits Taken 4 | 1 1 1 1 . Scrap Searched 1 | . . . 1 . Spaces Dug 5 | . 5 . . . Terrain Destroyed 58 | . 12 6 . 40 Melee . | . . . . . Projectile 13 | . . 6 . 7 AOE 45 | . 12 . . 33 Terrain Rammed . | . . . . . Walls Destroyed . | . . . . . Machines Disabled . | . . . . . Actions | -11 -10 -9 -9 -8 --------- Run | Yrd Mat Mat Min Mat Total 2055 | 507 557 234 201 556 Wait 614 | 249 279 53 23 10 Move 1294 | 225 255 149 176 489 Hop 1 | . . . . 1 Pick Up 11 | 6 1 3 . 1 Fast Attach 24 | 8 2 7 . 7 Attach 8 | . 3 . . 5 Detach 12 | 1 5 4 . 2 Swap 4 | . . 1 1 2 Drop 13 | 1 3 6 1 2 Fire 72 | 17 9 11 . 35 Melee . | . . . . . Ram . | . . . . . Kick 2 | . . . . 2 Crush . | . . . . . Escape Stasis . | . . . . . Rewire . | . . . . . Trap . | . . . . . Miscellaneous . | . . . . . Route ------- -11/Scrapyard -10/Materials -9/Materials -9/Mines -8/Materials History --------- Turn | Location | Event 3 | -11/Scrapyard | Discovered new exit (range 16) 670 | -11/Scrapyard | Entered Materials 671 | -10/Materials | Build established: Mutant 1162 | -10/Materials | Discovered new exit (range 16) 1394 | -10/Materials | Entered another Materials area 1394 | -9/Materials | Evolved 2 slots: Propulsion x2 1541 | -9/Materials | Destroyed 7 combat bots 1689 | -9/Materials | Discovered new exit (range 10) 1702 | -9/Materials | Entered Mines 1850 | -9/Mines | Discovered new exit (range 9) 1956 | -9/Mines | Entered Materials 1956 | -8/Materials | Evolved 2 slots: Utility x2 2164 | -8/Materials | Garrison activated, responded to threat 2204 | -8/Materials | Released all parts (9) 2279 | -8/Materials | Core integrity fell below 50% 2286 | -8/Materials | Garrison activated, responded to threat 2344 | -8/Materials | Lost 3 parts (1n2w) 2346 | -8/Materials | Core integrity fell below 20% 2416 | -8/Materials | Destroyed by Y-45 Defender with Beam Rifle Last Messages --------------- 02305_ K-01 Serf collects debris. 02310_ Penetrated by Slug. 02312_ K-01 Serf collects debris. 02313_ Aluminum Leg destroyed. 02313_ Slug penetrates Wall. 02318_ Penetrated by Slug. 02325_ Acquired Cesium-ion Thruster. 02338_ O-16 Technician: "IFF HANDSHAKE FAILED. SECURING TERMINAL." 02340_ W-25 Informer distress signal alerts nearby ally. 02342_ ALERT: Hostiles spotted, dispatching reinforcements to Terminal M007. 02343_ Acquired Hacking Suite. 02355_ K-01 Serf collects debris. 02396_ O-16 Technician: "IFF HANDSHAKE FAILED. SECURING TERMINAL." 02398_ O-16 Technician uses terminal to summon reinforcements. 02398_ ALERT: Hostiles spotted, dispatching reinforcements to Terminal M006. 02398_ O-16 Technician locks terminal. 02407_ Connecting with Terminal... 02407_ Current location identified: Materials Map ----- +----------------------------------------------------+ | ???????????# """"" #???# #?????????? | | ####???????# """"" #???# #?????????? | | T #???????# """ #???# #?????????? | | #???????# #???# #?????????? | | #???????# [ #???# #?????????? | | #???????# #???# #?????????? | | #???????#####+####??## ####??????? | | "" #?????????# ##### #??????? | | "" #?????????# " #??????? | | "" #?? ??????# "T T #??????? | | #?????????# = #??????? | | +###?????????# ##### #??????? | | ##?????????#######???## ##??????? | | #?#???????????????????# #???????? | | #??##?????????????????# #???????? | | #?????????????????????# #???????? | | #?????????????????????# #???????? | | ###??? ?? ??????????????# #???????? | | #???????????????????????# #???????? | | #?##?#??????????????????# #???????? | | ##??????????????????????# #???????? | | #?#?????????????????????# #????"??? | | #???????????????????????# #??""" ?? | | #?#?????????????????????# # """ # | | #??#???? ???????????????# ; " # | | #???#???????????????????#@ # # | | #????#??????????????????# #?######? | | #???????+#?????????????? #??????? | | #?#????? ?????????????? #??????? | | #?????????????????????? Y #??????? | | #????????????????????? #??????? | | #??#?????????????????### #??????? | | #??????????????????????###+###??????? | | #???????????????????????????????????? | | #???????"???????????????????????????? | | #???????????????????????????????????? | | #???????????????????????????????????? | | #???????????????????????????????????? | | #???????????????????????????????????? | | ????????????????????????????????????? | | ???? ?"?????????????????????????????? | | #???????????????????????????????????? | | #???????????????????????????????????? | | ##??????????????????????????????????? | | #???????????????????????????????????? | | ##??????????????????????????????????? | | #???????????????????????????????????? | | #???????????????????????????????????? | | #???????????????????????????????????? | | #???????????????????????????????????? | +----------------------------------------------------+ Best States ------------- Heat Dissipation 31 Energy Generation 12 Energy Capacity 265 Matter Stores 300 Matter Capacity 300 Sight Range 20 Robot Scan Range 15 Terrain Scan Range 16 Terrain Scan Density 10 Armor Coverage 150 Resistance: KI 20 Resistance: TH 20 Resistance: EX 20 Resistance: EM 20 Resistance: I 20 Resistance: S 20 Resistance: P 20 Evasion (%) 63 Targeting Accuracy 8 Recoil Reduction 2 Offensive Hacking 20 Item Schematics ----------------- None Robot Schematics ------------------ None Fabricated ------------ Nothing Alien Tech Used ----------------- None Achievements -------------- None Challenges ------------ None Game ------ Seed MicroArmoredDetector Manual? 0 Play Time 00:20:31 Cumulative 6.2 hours Start 2024.04.02 @ 21:56:05 End 2024.04.03 @ 14:32:50 Sessions 3 Manual Loads 0 Difficulty Adventurer Special Mode None Game No. 8 Rogue 0 Adventurer 8 Explorer 0 Win Type - Total 0 Types 0/0/0/0/0/0/0/0/0 Lore% 5 Gallery% 13 Achievement% 12 Wizard Run 0 Options --------- Layout 0 ASCII 0 Keyboard 1 Movement Numpad Keybinds 0 Fullscreen 2 Font 18/SmallcapsGlow Map View 76x50 Zoom Use 0% Tactical HUD 1 Map Filters NONE Filters NONE Steam 1 RUN: f2795bae-d2a5-41b5-8854-0cb5be7a7b29